fUSD/lending_fUSD_20240223
["ID","MTS","AMOUNT","RATE_DAILY","PERIOD"]
[315010209,1708729832529,-923.904643,0.000229,2]
[315010210,1708729832541,-518.01819753,0.000229,2]
[315010211,1708729832551,-6394.35291126,0.000229,2]
[315010212,1708729832562,-6430.54240113,0.000229,2]
[315010213,1708729832580,-579.62515284,0.000229,2]
[315010214,1708729832594,-1266.9540185,0.000229,2]
[315010215,1708729832611,-868.77204292,0.000229,2]
[315010216,1708729832622,-607.45729039,0.000229,2]
[315010217,1708729832632,-8499.54126721,0.000229,2]
[315010218,1708729832643,-2563.80012915,0.000229,2]
[315010219,1708729832654,-186.94888867,0.000229,2]
[315010220,1708729832664,-923.904643,0.000229,2]
[315010221,1708729832674,-2921.87386619,0.000229,2]
[315010222,1708729832685,-800.0,0.00022959,2]
[315010223,1708729832696,-1674.7038927,0.0002299,2]
[315010225,1708729832707,-399.72120886,0.0002299,2]
[315010240,1708729838222,-504.07906845,0.00022842,2]
[315010241,1708729838233,-500.0,0.000229,2]
[315010242,1708729838242,-1126.81096905,0.0002299,2]
[315010243,1708729838256,-148.17171479,0.0002299,2]
[315010244,1708729838267,-1674.7038927,0.0002299,2]
[315010245,1708729838277,-155.0,0.00022998,2]
[315010246,1708729838287,-27.07907751,0.00022998,2]
[315010247,1708729838300,-277.3436384,0.00022998,2]
[315010248,1708729838311,-155.0,0.00022998,2]
[315010249,1708729838322,-155.22246941,0.00022998,2]
[315010250,1708729838332,-286.42772352,0.00022998,2]
[315010251,1708729838343,-124.05530909,0.00022998,2]
[315010252,1708729838395,-235.14167459,0.00022998,2]
[315010253,1708729838405,-100.84872541,0.00022998,2]
[315010254,1708729838518,-440.62740555,0.00022998,2]
[315010255,1708729838528,-215.51304352,0.00022998,2]
[315010256,1708729838541,-2587.65484657,0.00022998,2]
[315010257,1708729838552,-155.0,0.00022998,2]
[315010258,1708729838562,-0.49675343,0.00022998,2]
[315010259,1708729838575,-266.62088971,0.00022998,2]
[315010260,1708729838587,-922.13130536,0.00022998,2]
[315010261,1708729838695,-4604.87428566,0.00022998,2]
[315010262,1708729838707,-33237.02634434,0.00022998,2]
[315010263,1708729838718,-157.24730753,0.00022998,2]
[315010264,1708729838728,-204.48496041,0.00022998,2]
[315010265,1708729838738,-247.12842139,0.00022999,2]
[315010266,1708729838748,-188.18186224,0.00022999,2]
[315010267,1708729838759,-246.61639901,0.00022999,2]
[315010268,1708729838769,-327.55007547,0.00022999,2]
[315010269,1708729838779,-191.76795124,0.00022999,2]
[315010270,1708729838789,-290.68324151,0.00022999,2]
[315010271,1708729838801,-430.42854931,0.00022999,2]
[315010272,1708729838812,-571.39533184,0.00022999,2]
[315010273,1708729838823,-14207.30356099,0.00022999,2]
[315010274,1708729838834,-324.02274923,0.00022999,2]
[315010275,1708729838845,-174.47637452,0.00022999,2]
[315010276,1708729838856,-156.28325337,0.00022999,2]
[315010277,1708729838866,-373.33054131,0.00022999,2]
[315010278,1708729838877,-500.0,0.00022999,2]
[315010279,1708729838888,-500.0,0.00022999,2]
[315010280,1708729838900,-500.0,0.00022999,2]
[315010281,1708729838911,-500.0,0.00022999,2]
[315010282,1708729838922,-624.58426878,0.00022999,2]
[315010283,1708729838933,-500.0,0.00022999,2]
[315010284,1708729838943,-413.25863357,0.00022999,2]
[315010285,1708729838954,-500.0,0.00022999,2]
[315010286,1708729838963,-462.26323703,0.00022999,2]
[315010287,1708729838973,-500.0,0.00022999,2]
[315010288,1708729838983,-500.0,0.00022999,2]
[315010289,1708729838993,-500.0,0.00022999,2]
[315010290,1708729839003,-402.27732784,0.00022999,2]
[315010291,1708729839013,-4937882.61942133,0.00023,2]
[315010292,1708729839023,-127880.65743998,0.00023,2]
[315010293,1708729839033,-1239.36942641,0.00023006,2]
[315010294,1708729839044,-150.0,0.00023096,2]
[315010295,1708729839054,-9145.89361532,0.00023347,2]
[315010296,1708729839065,-313.63196446,0.000235,2]
[315010297,1708729839075,-2921.87386613,0.00023567,2]
[315010298,1708729839085,-152.3142153,0.00023644,2]
[315010299,1708729839095,-9145.89361532,0.00023795,2]
[315010300,1708729839106,-2244.88312553,0.00024,2]
[315010301,1708729839115,-553.63,0.00024,2]
[315010302,1708729839126,-1000.0,0.00024129,2]
[315010303,1708729839136,-2921.87386613,0.00024235,2]
[315010304,1708729839146,-9145.89361532,0.00024242,2]
[315010305,1708729839159,-200.0,0.00024293,2]
[315010306,1708729839172,-882.73,0.0002434,2]
[315010307,1708729839183,-3717.32,0.0002448,2]
[315010308,1708729839192,-9145.89361532,0.00024689,2]
[315010309,1708729839205,-162.42,0.00024712,2]
[315010310,1708729839217,-200.0,0.00024715,2]
[315010311,1708729839227,-171.23,0.00024715,2]
[315010312,1708729839237,-150.0,0.0002474,2]
[315010313,1708729839249,-2000.0,0.00024824,2]
[315010314,1708729839259,-250.0,0.00024858,2]
[315010315,1708729839270,-2921.87386613,0.00024902,2]
[315010316,1708729839281,-23890.0,0.00024942,2]
[315010317,1708729839292,-750.0,0.00025,3]
[315010318,1708729839302,-1438.2,0.00025012,2]
[315010319,1708729839313,-165.95,0.00025113,2]
[315010320,1708729839323,-162.42,0.00025124,2]
[315010321,1708729839334,-9145.89361532,0.00025136,2]
[315010322,1708729839344,-186.0,0.00025301,2]
[315010323,1708729839354,-186.94888865,0.00025304,2]
[315010324,1708729839365,-607.45729038,0.0002536,2]
[315010325,1708729839376,-162.42,0.00025536,2]
[315010326,1708729839386,-9145.89361532,0.00025584,2]
[315010327,1708729839397,-179.77,0.00025639,2]
[315010328,1708729839408,-162.42,0.00025948,2]
[315010329,1708729839418,-9145.89361532,0.00026031,2]
[315010330,1708729839427,-162.69,0.0002605,2]
[315010331,1708729839437,-150.0,0.00026079,2]
[315010332,1708729839446,-3717.32,0.00026124,2]
[315010333,1708729839455,-800.0,0.00026247,2]
[315010334,1708729839464,-1000.0,0.00026261,2]
[315010335,1708729839474,-201.61,0.00026264,2]
[315010336,1708729839483,-800.0,0.00026356,2]
[315010337,1708729839492,-162.42,0.0002636,2]
[315010338,1708729839502,-645.48,0.00026386,2]
[315010339,1708729839511,-9145.89361532,0.00026478,2]
[315010340,1708729839520,-186.0,0.00026671,2]
[315010341,1708729839529,-289.81,0.00026677,2]
[315010342,1708729839538,-162.42,0.00026772,2]
[315010343,1708729839547,-7992.17865923,0.00026798,2]
[315010344,1708729839557,-7992.17865922,0.00026798,2]
[315010345,1708729839567,-7992.17865922,0.00026798,2]
[315010346,1708729839576,-9145.89361532,0.00026925,2]
[315010347,1708729839587,-162.42,0.00027183,2]
[315010348,1708729839597,-245000.0,0.00027197,2]
[315010349,1708729839606,-1000.0,0.00027197,2]
[315010350,1708729839616,-471.5836,0.00027197,2]
[315010351,1708729839625,-451.46286211,0.0002728,2]
[315010352,1708729839634,-4169797.32850717,0.0002728,3]
[315010353,1708729839643,-9145.89361532,0.00027373,2]
[315010354,1708729839653,-500.0,0.00027397,2]
[315010355,1708729839662,-517.25,0.00027397,2]
[315010356,1708729839671,-498.94511,0.00027397,2]
[315010357,1708729839680,-500.0,0.00027397,2]
[315010358,1708729839689,-291.6551324,0.00027397,2]
[315010359,1708729839699,-155.0,0.00027397,2]
[315010360,1708729839708,-500.0,0.00027397,2]
[315010361,1708729839718,-500.0,0.00027397,2]
[315010362,1708729839727,-500.0,0.00027397,2]
[315010363,1708729839737,-500.0,0.00027397,2]
[315010364,1708729839747,-500.0,0.00027397,2]
[315010365,1708729839756,-500.0,0.00027397,2]
[315010366,1708729839766,-500.0,0.00027397,2]
[315010367,1708729839777,-503.99136064,0.00027397,2]
[315010368,1708729839787,-500.0,0.00027397,2]
[315010369,1708729839796,-506.18292138,0.00027397,2]
[315010370,1708729839807,-500.0,0.00027397,2]
[315010371,1708729839817,-500.0,0.00027397,2]
[315010372,1708729839826,-500.0,0.00027397,2]
[315010373,1708729839835,-460.48980721,0.00027397,2]
[315010374,1708729839846,-500.0,0.00027397,2]
[315010375,1708729839855,-500.0,0.00027397,2]
[315010376,1708729839865,-629.63122497,0.00027397,2]
[315010377,1708729839876,-500.0,0.00027397,2]
[315010378,1708729839885,-500.0,0.00027397,2]
[315010379,1708729839894,-500.0,0.00027397,2]
[315010380,1708729839904,-500.0,0.00027397,2]
[315010381,1708729839913,-500.0,0.00027397,2]
[315010382,1708729839922,-500.0,0.00027397,2]
[315010383,1708729839931,-500.0,0.00027397,2]
[315010384,1708729839941,-316.67506922,0.00027397,2]
[315010385,1708729839950,-500.0,0.00027397,2]
[315010386,1708729839959,-500.0,0.00027397,2]
[315010387,1708729839968,-500.0,0.00027397,2]
[315010388,1708729839978,-616.12,0.00027397,2]
[315010389,1708729839988,-500.0,0.00027397,2]
[315010390,1708729839997,-500.0,0.00027397,2]
[315010391,1708729840006,-500.0,0.00027397,2]
[315010392,1708729840016,-500.0,0.00027397,2]
[315010393,1708729840025,-500.0,0.00027397,2]
[315010394,1708729840034,-500.0,0.00027397,2]
[315010396,1708729840043,-500.0,0.00027397,2]
[315010397,1708729840053,-527.88,0.00027397,2]
[315010399,1708729840062,-500.0,0.00027397,2]
[315010400,1708729840071,-500.0,0.00027397,2]
[315010401,1708729840080,-500.0,0.00027397,2]
[315010402,1708729840089,-500.0,0.00027397,2]
[315010403,1708729840098,-500.0,0.00027397,2]
[315010404,1708729840107,-500.0,0.00027397,2]
[315010405,1708729840116,-500.0,0.00027397,2]
[315010406,1708729840126,-3718.97,0.00027397,2]
[315010407,1708729840304,-858.95,0.00027397,2]
[315010408,1708729840316,-500.0,0.00027397,2]
[315010409,1708729840325,-500.0,0.00027397,2]
[315010410,1708729840334,-500.0,0.00027397,2]
[315010411,1708729840344,-500.0,0.00027397,2]
[315010412,1708729840352,-500.0,0.00027397,2]
[315010413,1708729840362,-500.0,0.00027397,2]
[315010414,1708729840370,-500.0,0.00027397,2]
[315010415,1708729840381,-500.0,0.00027397,2]
[315010416,1708729840390,-500.0,0.00027397,2]
[315010417,1708729840399,-500.0,0.00027397,2]
[315010418,1708729840408,-500.0,0.00027397,2]
[315010419,1708729840417,-500.0,0.00027397,2]
[315010420,1708729840426,-500.0,0.00027397,2]
[315010421,1708729840435,-932.94,0.00027397,2]
[315010422,1708729840445,-500.0,0.00027397,2]
[315010423,1708729840454,-500.0,0.00027397,2]
[315010424,1708729840463,-1684.3,0.00027397,2]
[315010425,1708729840472,-500.0,0.00027397,2]
[315010426,1708729840481,-500.0,0.00027397,2]
[315010427,1708729840490,-500.0,0.00027397,2]
[315010428,1708729840499,-500.0,0.00027397,2]
[315010429,1708729840508,-500.0,0.00027397,2]
[315010430,1708729840518,-574.59,0.00027397,2]
[315010431,1708729840527,-500.0,0.00027397,2]
[315010432,1708729840535,-500.0,0.00027397,2]
[315010433,1708729840544,-500.0,0.00027397,2]
[315010434,1708729840553,-500.0,0.00027397,2]
[315010435,1708729840563,-500.0,0.00027397,2]
[315010436,1708729840572,-500.0,0.00027397,2]
[315010437,1708729840581,-500.0,0.00027397,2]
[315010438,1708729840590,-339.12972734,0.00027397,2]
[315010439,1708729840599,-500.0,0.00027397,2]
[315010440,1708729840608,-500.0,0.00027397,2]
[315010441,1708729840617,-500.0,0.00027397,2]
[315010442,1708729840626,-500.0,0.00027397,2]
[315010443,1708729840635,-758.04,0.00027397,2]
[315010444,1708729840645,-500.0,0.00027397,2]
[315010445,1708729840653,-500.0,0.00027397,2]
[315010446,1708729840662,-500.0,0.00027397,2]
[315010447,1708729840671,-528.09413558,0.00027397,2]
[315010448,1708729840680,-500.0,0.00027397,2]
[315010449,1708729840689,-500.0,0.00027397,2]
[315010450,1708729840698,-500.0,0.00027397,2]
[315010451,1708729840707,-500.0,0.00027397,2]
[315010452,1708729840717,-500.0,0.00027397,2]
[315010453,1708729840727,-500.0,0.00027397,2]
[315010454,1708729840736,-307.98648211,0.00027397,2]
[315010455,1708729840745,-500.0,0.00027397,2]
[315010456,1708729840754,-500.0,0.00027397,2]
[315010457,1708729840763,-500.0,0.00027397,2]
[315010458,1708729840772,-500.0,0.00027397,2]
[315010459,1708729840781,-500.0,0.00027397,2]
[315010460,1708729840790,-500.0,0.00027397,2]
[315010461,1708729840799,-500.0,0.00027397,2]
[315010462,1708729840809,-500.0,0.00027397,2]
[315010463,1708729840818,-2608.69,0.00027397,2]
[315010464,1708729840828,-500.0,0.00027397,2]
[315010465,1708729840838,-500.0,0.00027397,2]
[315010466,1708729840847,-500.0,0.00027397,2]
[315010467,1708729840856,-980.1,0.00027397,2]
[315010468,1708729840865,-500.0,0.00027397,2]
[315010469,1708729840874,-500.0,0.00027397,2]
[315010470,1708729840885,-500.0,0.00027397,2]
[315010471,1708729840894,-500.0,0.00027397,2]
[315010472,1708729840903,-500.0,0.00027397,2]
[315010473,1708729840912,-500.0,0.00027397,2]
[315010474,1708729840922,-500.0,0.00027397,2]
[315010475,1708729840931,-561.43131942,0.00027397,2]
[315010476,1708729840941,-500.0,0.00027397,2]
[315010477,1708729840950,-413.79924141,0.00027397,2]
[315010478,1708729840960,-500.0,0.00027397,2]
[315010479,1708729840969,-500.0,0.00027397,2]
[315010480,1708729840978,-500.0,0.00027397,2]
[315010481,1708729840988,-500.0,0.00027397,2]
[315010482,1708729840999,-500.0,0.00027397,2]
[315010483,1708729841009,-500.0,0.00027397,2]
[315010484,1708729841021,-500.0,0.00027397,2]
[315010485,1708729841031,-500.0,0.00027397,2]
[315010486,1708729841041,-1390.13,0.00027397,2]
[315010487,1708729841050,-1390.13,0.00027397,2]
[315010488,1708729841060,-1390.13,0.00027397,2]
[315010489,1708729841070,-1390.13,0.00027397,2]
[315010490,1708729841079,-1390.13,0.00027397,2]
[315010491,1708729841089,-1390.13,0.00027397,2]
[315010492,1708729841099,-1390.13,0.00027397,2]
[315010493,1708729841109,-500.0,0.00027397,2]
[315010494,1708729841119,-1390.13,0.00027397,2]
[315010495,1708729841130,-1390.13,0.00027397,2]
[315010496,1708729841139,-1390.13,0.00027397,2]
[315010497,1708729841149,-1000.0,0.00027397,7]
[315010498,1708729841162,-1390.13,0.00027397,2]
[315010499,1708729841171,-500.0,0.00027397,2]
[315010500,1708729841181,-536.07227467,0.00027397,2]
[315010501,1708729841190,-1390.13,0.00027397,2]
[315010502,1708729841200,-1390.13,0.00027397,2]
[315010503,1708729841210,-1005.66,0.00027397,2]
[315010504,1708729841220,-1390.13,0.00027397,2]
[315010505,1708729841230,-1390.13,0.00027397,2]
[315010506,1708729841242,-1390.13,0.00027397,2]
[315010507,1708729841252,-1390.13,0.00027397,2]
[315010508,1708729841262,-1390.13,0.00027397,2]
[315010509,1708729841271,-1390.13,0.00027397,2]
[315010510,1708729841281,-515.38815963,0.00027397,2]
[315010511,1708729841290,-1390.13,0.00027397,2]
[315010512,1708729841300,-1390.13,0.00027397,2]
[315010513,1708729841309,-500.0,0.00027397,2]
[315010514,1708729841320,-1390.13,0.00027397,2]
[315010515,1708729841330,-1390.13,0.00027397,2]
[315010516,1708729841340,-1390.17565741,0.00027397,2]
[315010517,1708729841349,-500.0,0.00027397,2]
[315010518,1708729841358,-500.0,0.00027397,2]
[315010519,1708729841367,-500.0,0.00027397,2]
[315010520,1708729841377,-500.0,0.00027397,2]
[315010521,1708729841387,-500.0,0.00027397,2]
[315010522,1708729841396,-500.0,0.00027397,2]
[315010523,1708729841405,-500.0,0.00027397,2]
[315010524,1708729841415,-500.0,0.00027397,2]
[315010525,1708729841424,-500.0,0.00027397,2]
[315010526,1708729841434,-500.0,0.00027397,2]
[315010527,1708729841443,-500.0,0.00027397,2]
[315010528,1708729841453,-500.0,0.00027397,2]
[315010529,1708729841463,-500.0,0.00027397,2]
[315010530,1708729841471,-528.50924207,0.00027397,2]
[315010531,1708729841480,-500.0,0.00027397,2]
[315010532,1708729841490,-500.0,0.00027397,2]
[315010533,1708729841500,-511.97705717,0.00027397,2]
[315010534,1708729841509,-500.0,0.00027397,2]
[315010535,1708729841519,-500.0,0.00027397,2]
[315010536,1708729841529,-500.0,0.00027397,2]
[315010537,1708729841538,-500.0,0.00027397,2]
[315010538,1708729841547,-500.0,0.00027397,2]
[315010539,1708729841557,-500.0,0.00027397,2]
[315010540,1708729841567,-500.0,0.00027397,2]
[315010541,1708729841576,-500.0,0.00027397,2]
[315010542,1708729841585,-1181.37,0.00027397,2]
[315010543,1708729841594,-150.0,0.00027397,7]
[315010544,1708729841604,-500.0,0.00027397,2]
[315010545,1708729841613,-501.41777075,0.00027397,2]
[315010546,1708729841623,-500.0,0.00027397,2]
[315010547,1708729841633,-500.0,0.00027397,2]
[315010548,1708729841642,-501.5773733,0.00027397,2]
[315010549,1708729841651,-2152.3,0.00027397,2]
[315010550,1708729841660,-150.0,0.00027397,7]
[315010551,1708729841670,-500.0,0.00027397,2]
[315010552,1708729841679,-520.05,0.00027397,2]
[315010553,1708729841688,-500.0,0.00027397,2]
[315010554,1708729841697,-519.00288726,0.00027397,2]
[315010555,1708729841707,-500.0,0.00027397,2]
[315010556,1708729841716,-2775.07,0.00027397,2]
[315010557,1708729841725,-500.0,0.00027397,2]
[315010558,1708729841735,-500.0,0.00027397,2]
[315010559,1708729841744,-502.30871631,0.00027397,2]
[315010560,1708729841754,-500.0,0.00027397,2]
[315010561,1708729841763,-500.0,0.00027397,2]
[315010562,1708729841772,-500.0,0.00027397,2]
[315010563,1708729841782,-500.0,0.00027397,2]
[315010564,1708729841791,-500.0,0.00027397,2]
[315010565,1708729841800,-500.0,0.00027397,2]
[315010567,1708729841810,-500.0,0.00027397,2]
[315010569,1708729841819,-450.93197864,0.00027397,2]
[315010571,1708729841828,-578.81365705,0.00027397,2]
[315010572,1708729841837,-500.0,0.00027397,2]
[315010575,1708729841847,-500.0,0.00027397,2]
[315010577,1708729841857,-502.52,0.00027397,2]
[315010578,1708729841866,-500.0,0.00027397,2]
[315010579,1708729841876,-500.0,0.00027397,2]
[315010580,1708729841885,-500.0,0.00027397,2]
[315010581,1708729841894,-500.0,0.00027397,2]
[315010582,1708729841904,-500.0,0.00027397,2]
[315010583,1708729841913,-500.0,0.00027397,2]
[315010584,1708729841923,-500.0,0.00027397,2]
[315010585,1708729841932,-500.0,0.00027397,2]
[315010586,1708729841942,-500.0,0.00027397,2]
[315010587,1708729841952,-500.0,0.00027397,2]
[315010588,1708729841961,-500.0,0.00027397,2]
[315010589,1708729841970,-500.0,0.00027397,2]
[315010590,1708729841979,-500.0,0.00027397,2]
[315010591,1708729841989,-500.0,0.00027397,2]
[315010592,1708729841998,-500.0,0.00027397,2]
[315010593,1708729842007,-500.0,0.00027397,2]
[315010594,1708729842017,-500.0,0.00027397,2]
[315010595,1708729842026,-537.81690678,0.00027397,2]
[315010596,1708729842035,-648.12,0.00027397,2]
[315010597,1708729842044,-500.0,0.00027397,2]
[315010598,1708729842054,-520.14046694,0.00027397,2]
[315010599,1708729842063,-500.0,0.00027397,2]
[315010600,1708729842072,-500.0,0.00027397,2]
[315010601,1708729842081,-534.9,0.00027397,2]
[315010602,1708729842090,-500.94252056,0.00027397,2]
[315010603,1708729842099,-500.0,0.00027397,2]
[315010604,1708729842109,-500.0,0.00027397,2]
[315010605,1708729842119,-201.70261338,0.00027397,2]
[315010606,1708729842129,-2207.99,0.00027397,2]
[315010607,1708729842139,-258.46,0.00027397,10]
[315010608,1708729842148,-492.87,0.00027397,10]
[315010609,1708729842161,-410.73,0.00027397,10]
[315010610,1708729842170,-156.49,0.000274,2]
[315010611,1708729842179,-156.49,0.000274,2]
[315010612,1708729842189,-156.49,0.000274,2]
[315010613,1708729842199,-156.49,0.000274,2]
[315010614,1708729842210,-156.49,0.000274,2]
[315010615,1708729842219,-156.49,0.000274,2]
[315010616,1708729842228,-156.49,0.000274,2]
[315010617,1708729842238,-150.0,0.0002748,2]
[315010618,1708729842249,-6939.01706374,0.000275,2]
[315010619,1708729842258,-366.49298243,0.00027534,2]
[315010620,1708729842267,-500.0,0.00027534,2]
[315010621,1708729842277,-500.0,0.00027534,2]
[315010622,1708729842286,-500.0,0.00027534,2]
[315010623,1708729842295,-500.0,0.00027534,2]
[315010624,1708729842305,-500.0,0.00027534,2]
[315010625,1708729842314,-500.0,0.00027534,2]
[315010626,1708729842323,-500.0,0.00027534,2]
[315010627,1708729842333,-500.0,0.00027534,2]
[315010628,1708729842343,-500.0,0.00027534,2]
[315010629,1708729842352,-500.0,0.00027534,2]
[315010630,1708729842361,-500.0,0.00027534,2]
[315010631,1708729842370,-548.59285915,0.00027534,2]
[315010632,1708729842380,-616.12,0.00027534,2]
[315010633,1708729842391,-500.0,0.00027534,2]
[315010634,1708729842401,-500.0,0.00027534,2]
[315010635,1708729842410,-500.0,0.00027534,2]
[315010636,1708729842420,-500.0,0.00027534,2]
[315010637,1708729842429,-527.88,0.00027534,2]
[315010638,1708729842438,-500.0,0.00027534,2]
[315010639,1708729842447,-500.0,0.00027534,2]
[315010640,1708729842456,-500.0,0.00027534,2]
[315010641,1708729842465,-500.0,0.00027534,2]
[315010642,1708729842474,-500.0,0.00027534,2]
[315010643,1708729842483,-3718.97,0.00027534,2]
[315010644,1708729842492,-858.95,0.00027534,2]
[315010645,1708729842501,-500.0,0.00027534,2]
[315010646,1708729842510,-500.0,0.00027534,2]
[315010647,1708729842519,-500.0,0.00027534,2]
[315010648,1708729842528,-500.0,0.00027534,2]
[315010649,1708729842537,-500.0,0.00027534,2]
[315010650,1708729842546,-500.0,0.00027534,2]
[315010651,1708729842555,-500.0,0.00027534,2]
[315010652,1708729842565,-500.0,0.00027534,2]
[315010653,1708729842574,-500.0,0.00027534,2]
[315010654,1708729842583,-932.94,0.00027534,2]
[315010655,1708729842592,-500.0,0.00027534,2]
[315010656,1708729842602,-1684.3,0.00027534,2]
[315010657,1708729842611,-500.0,0.00027534,2]
[315010658,1708729842620,-450.17285536,0.00027534,2]
[315010659,1708729842629,-320.18743666,0.00027534,2]
[315010660,1708729842639,-574.59,0.00027534,2]
[315010661,1708729842648,-501.0458218,0.00027534,2]
[315010662,1708729842656,-500.0,0.00027534,2]
[315010663,1708729842665,-500.0,0.00027534,2]
[315010664,1708729842674,-500.0,0.00027534,2]
[315010665,1708729842683,-500.0,0.00027534,2]
[315010666,1708729842692,-500.0,0.00027534,2]
[315010667,1708729842700,-500.0,0.00027534,2]
[315010668,1708729842709,-500.0,0.00027534,2]
[315010669,1708729842717,-500.0,0.00027534,2]
[315010670,1708729842726,-758.04,0.00027534,2]
[315010671,1708729842734,-500.0,0.00027534,2]
[315010672,1708729842743,-500.0,0.00027534,2]
[315010673,1708729842753,-500.0,0.00027534,2]
[315010674,1708729842762,-500.0,0.00027534,2]
[315010675,1708729842771,-500.0,0.00027534,2]
[315010676,1708729842781,-500.0,0.00027534,2]
[315010677,1708729842790,-500.0,0.00027534,2]
[315010678,1708729842799,-500.0,0.00027534,2]
[315010679,1708729842808,-500.0,0.00027534,2]
[315010680,1708729842817,-500.0,0.00027534,2]
[315010681,1708729842827,-500.0,0.00027534,2]
[315010682,1708729842836,-2608.69,0.00027534,2]
[315010683,1708729842845,-426.96,0.00027534,2]
[315010684,1708729842855,-500.0,0.00027534,2]
[315010685,1708729842864,-980.1,0.00027534,2]
[315010686,1708729842874,-500.0,0.00027534,2]
[315010687,1708729842883,-500.0,0.00027534,2]
[315010688,1708729842893,-500.0,0.00027534,2]
[315010689,1708729842902,-500.0,0.00027534,2]
[315010690,1708729842911,-500.0,0.00027534,2]
[315010691,1708729842921,-500.0,0.00027534,2]
[315010692,1708729842930,-500.0,0.00027534,2]
[315010693,1708729842940,-500.0,0.00027534,2]
[315010694,1708729842949,-500.0,0.00027534,2]
[315010695,1708729842958,-500.0,0.00027534,2]
[315010696,1708729842967,-500.0,0.00027534,2]
[315010697,1708729842977,-500.0,0.00027534,2]
[315010698,1708729842986,-1000.0,0.00027534,7]
[315010699,1708729842996,-500.0,0.00027534,2]
[315010700,1708729843005,-1005.66,0.00027534,2]
[315010701,1708729843014,-500.0,0.00027534,2]
[315010702,1708729843023,-500.0,0.00027534,2]
[315010704,1708729843033,-500.0,0.00027534,2]
[315010705,1708729843042,-500.0,0.00027534,2]
[315010706,1708729843050,-500.0,0.00027534,2]
[315010707,1708729843059,-500.0,0.00027534,2]
[315010708,1708729843068,-500.0,0.00027534,2]
[315010709,1708729843077,-500.0,0.00027534,2]
[315010710,1708729843085,-377.87184372,0.00027534,2]
[315010711,1708729843094,-500.0,0.00027534,2]
[315010712,1708729843103,-500.0,0.00027534,2]
[315010713,1708729843112,-500.0,0.00027534,2]
[315010714,1708729843120,-500.0,0.00027534,2]
[315010715,1708729843130,-500.0,0.00027534,2]
[315010716,1708729843139,-500.0,0.00027534,2]
[315010717,1708729843148,-500.0,0.00027534,2]
[315010718,1708729843160,-500.0,0.00027534,2]
[315010719,1708729843169,-500.0,0.00027534,2]
[315010720,1708729843178,-500.0,0.00027534,2]
[315010721,1708729843188,-500.0,0.00027534,2]
[315010722,1708729843197,-1181.37,0.00027534,2]
[315010723,1708729843207,-500.0,0.00027534,2]
[315010724,1708729843216,-500.0,0.00027534,2]
[315010725,1708729843225,-2152.3,0.00027534,2]
[315010726,1708729843237,-520.05,0.00027534,2]
[315010727,1708729843247,-500.0,0.00027534,2]
[315010728,1708729843256,-500.0,0.00027534,2]
[315010729,1708729843265,-500.0,0.00027534,2]
[315010730,1708729843274,-2775.07,0.00027534,2]
[315010731,1708729843283,-500.0,0.00027534,2]
[315010732,1708729843291,-500.0,0.00027534,2]